Cogmind - Beta 16 @@@ ROGUE MODE // 2025.12.07 @ 23:04:16 Player: AngelSpirit Result: Destroyed by HN-IA4(R) with Subdweller Shrapnel Launcher Performance ------------- Evolutions (0) 0 Regions Visited (2) 400 Robots Destroyed (38) 190 Value Destroyed (958) 958 Prototype IDs (12) 240 Alien Tech Used (0) 0 Bonus (0) 0 TOTAL SCORE: 1788 Bonus ------- None Cogmind --------- Core Integrity 0/250 Matter 288/300 Energy 200/200 System Corruption 0% Temperature Cool (0) Movement Rolling (107) Ox1 Location -10/Subcaves Parts ------- > --- POWER (1) -------- Subdweller Power Source > --- PROPULSION (2) --- Wheel Subdweller Monowheel > --- UTILITY (2) ------ High-capacity Storage Unit Sensor Array > --- WEAPON (2) ------- Subdweller Beam Cannon Battle Cannon > --- INVENTORY (20) --- Ion Engine Light Nuclear Core Cargo Legs Wheel Wheel Wheel Wheel Wheel Wheel Wheel Wheel Medium Matter Pod (100) Signal Interpreter Makeshift Light Armor Plating Hacking Suite Hacking Suite Hacking Suite Beam Cannon Grenade Launcher Peak State ------------ > --- POWER ------------ Subdweller Power Source > --- PROPULSION ------- Wheel Subdweller Monowheel > --- UTILITY ---------- High-capacity Storage Unit Makeshift Light Armor Plating > --- WEAPON ----------- Subdweller Beam Cannon Battle Cannon > --- INVENTORY -------- Ion Engine Light Nuclear Core Cargo Legs Wheel Wheel Wheel Wheel Wheel Wheel Wheel Wheel Medium Matter Pod Sensor Array Signal Interpreter Hacking Suite Hacking Suite Hacking Suite Beam Cannon Grenade Launcher [Rating: 18] Favorites ----------- Power Ion Engine Engine Ion Engine Propulsion Wheel Wheel Wheel Utility High-capacity Storage Unit Device Sensor Array Storage High-capacity Storage Unit Protection Light Armor Plating Weapon Beam Cannon Energy Gun Medium Laser Energy Cannon Beam Cannon Ballistic Gun Subdweller Machine Gun Ballistic Cannon Battle Cannon Launcher Grenade Launcher Build | -11 -10 -10 ------- Run | Yrd Mat Sub Slots Evolved . | . . . Power . | . . . Propulsion . | . . . Utility . | . . . Weapon . | . . . Parts Attached 29 | 6 11 12 Power 4 | 1 1 2 Engine 4 | 1 1 2 Core . | . . . Reactor . | . . . Propulsion 8 | 2 3 3 Treads . | . . . Leg . | . . . Wheel 8 | 2 3 3 Hover . | . . . Flight . | . . . Utility 6 | 1 3 2 Device 1 | . . 1 Storage 2 | 1 1 . Processor . | . . . Hackware . | . . . Protection 3 | . 2 1 Artifact . | . . . Weapon 11 | 2 4 5 Energy Gun 1 | 1 . . Energy Cannon 3 | . 1 2 Ballistic Gun 3 | 1 2 . Ballistic Cannon 2 | . . 2 Launcher 2 | . 1 1 Special Weapon . | . . . Impact Weapon . | . . . Slashing Weapon . | . . . Piercing Weapon . | . . . Special Melee Weapon . | . . . Unidentified Prototypes . | . . . Parts Lost 2 | . 1 1 Power . | . . . Propulsion 1 | . 1 . Utility . | . . . Weapon 1 | . . 1 Highest Loss Streak 1 | . 1 1 To Critical Strikes . | . . . Average Backups 13 | . 7 18 Power 1 | . 1 1 Propulsion 5 | . 1 8 Utility 3 | . 1 6 Weapon 2 | . 3 2 Tool/Special . | . . . Unused Backups 18 | . 3 15 Power 3 | . 2 1 Propulsion 9 | . 1 8 Utility 5 | . . 5 Weapon 1 | . . 1 Tool/Special . | . . . Average Slot Usage (%) 98 | . 97 99 Engine 14 | . 14 14 Wheel 27 | . 27 28 Device 6 | . . 13 Storage 14 | . 14 14 Protection 6 | . 12 . Energy Cannon 13 | . 13 13 Ballistic Gun 9 | . 12 7 Ballistic Cannon 3 | . . 6 Peak Build Rating 18 | 6 10 18 Average Rating 9 | 4 7 12 On Entrance 5 | . 6 10 Avg Prop Armor Cover (%) . | . . . Naked Turns . | . . . Heaviest Build 60 | 13 55 60 Greatest Support 32 | 32 32 30 Greatest Overweight (x) 3 | . 3 2 Average Overweight (x) 1 | . 1 1 Largest Inventory Capacity 20 | 8 20 20 Average Capacity 18 | 6 18 20 Most Carried 20 | . 20 20 Average Carried 13 | . 7 19 Final Capacity 20 | 8 20 20 Final Carried 20 | . 20 20 Class Distribution -------------------- 100% | Mutant Dominant Class ---------------- Mutant | -10/Materials Mutant | -10/Subcaves Resources | -11 -10 -10 ----------- Run | Yrd Mat Sub Matter Collected 1085 | 260 256 569 Remotely . | . . . Salvage Created 959 | . 809 150 Parts 58 | . 47 11 Haulers Intercepted 1 | . 1 . Recyclers Shooed . | . . . Parts Field Recycled . | . . . Retrieved Matter . | . . . Parts Self-Destructed 13 | . . 13 Prevented . | . . . Parts Restored . | . . . Kills | -11 -10 -10 ------- Run | Yrd Mat Sub Combat Hostiles Destroyed 29 | . 20 9 Guns 1 | . 1 . Cannons 13 | . 11 2 AOE 15 | . 8 7 Classes Destroyed 9 | . 8 1 Worker 1 | . 1 . Hauler 1 | . 1 . Recycler 1 | . 1 . Operator 1 | . 1 . Turret 2 | . . 2 Watcher 3 | . 3 . Swarmer 10 | . 6 4 Grunt 13 | . 13 . Subdweller 6 | . 1 5 Best Kill Streak 6 | . 6 4 Combat Bots Only 6 | . 6 4 Max Kills in Single Turn 3 | . 2 3 Gunslinging . | . . . Exploded 3 | . 2 3 Melee . | . . . Uniques/NPCs Destroyed . | . . . Combat | -11 -10 -10 -------- Run | Yrd Mat Sub Hostile Shots Fired 107 | . 50 57 Missed 34 | . 13 21 Hits 73 | . 37 36 Projectile 73 | . 37 36 AOE 2 | . . 2 Damage Taken 964 | . 478 486 Core 251 | . 91 160 Absorbed by Shields . | . . . Core Remaining (%) 100 | 100 . . Volleys Fired 124 | . 52 72 Largest 2 | . 2 2 Hottest 113 | . 90 113 Shots Fired 186 | . 99 87 Gun 92 | . 44 48 Cannon 76 | . 48 28 Launcher 18 | . 7 11 Special . | . . . Kinetic 104 | . 44 60 Thermal 64 | . 48 16 Explosive 18 | . 7 11 Electromagnetic . | . . . Robot Hit Streak 13 | . 8 13 Robot Miss Streak 4 | . 4 3 Penetration Max . | . . . Secondary Targets . | . . . Shots Hit Robots 75 | . 52 23 Core Hits 53 | . 35 18 Critical Kills . | . . . Critical Parts Destroyed . | . . . Critical Strikes . | . . . Melee Attacks . | . . . Impact . | . . . Slashing . | . . . Piercing . | . . . Sneak Attacks . | . . . Combat Hostiles . | . . . Follow-up Attacks . | . . . Damage Inflicted 2460 | . 1347 1113 Guns 246 | . 182 64 Cannons 851 | . 572 279 Explosions 1363 | . 593 770 Melee . | . . . Ramming . | . . . Kinetic 312 | . 182 130 Thermal 785 | . 572 213 Explosive 1363 | . 593 770 Electromagnetic . | . . . Impact . | . . . Slashing . | . . . Piercing . | . . . Highest Corruption . | . . . Average Corruption . | . . . Corruption Purged . | . . . Corruption Blocked . | . . . Overload Shots . | . . . Overflow Damage 43 | . 33 10 Projectiles 13 | . 3 10 Explosions 30 | . 30 . Melee . | . . . Knockbacks 1 | . . 1 Impact . | . . . Kinetic 1 | . . 1 Secondary . | . . . Self-Inflicted Damage 132 | . 96 36 Shots 5 | . 3 2 Rammed . | . . . Targets Rammed . | . . . Kicked . | . . . Crushed . | . . . Highest Temperature 243 | . 243 21 Average Temperature 60 | . 64 12 Received Heat Transfer 333 | . 177 156 Siege Activations . | . . . Martial Activations . | . . . Shielding Activations . | . . . Robots Disrupted . | . . . Combat Hostiles . | . . . Robots Corrupted . | . . . Combat Hostiles . | . . . Parts Fried . | . . . Impact Corruptions . | . . . Robots Melted . | . . . Combat Hostiles . | . . . Parts Melted 2 | . 2 . Heat Transferred 1517 | . 1221 296 Parts Sabotaged . | . . . Parts Stolen . | . . . Parts Stripped . | . . . Power Chain Reactions . | . . . Alert | -11 -10 -10 ------- Run | Yrd Mat Sub Maximum Alert Level 1 | . 1 . Low Security (%) 39 | 100 36 . Level 1 60 | . 63 . Level 2 . | . . . Level 3 . | . . . Level 4 . | . . . Level 5 . | . . . High Security . | . . . Max Security . | . . . Peak Influence 310 | . 310 . Initial . | . . . Average 158 | . 166 . Influence Increases 759 | . 579 180 Destroy 0b10 Robot/C 500 | . 380 120 Destroy 0b10 Robot/NC 35 | . 35 . Destroy Leader 78 | . 78 . Successful Hack 5 | . 5 . Disable Machine 45 | . 45 . Destroy Structure 36 | . 36 . Lose Combat Pursuer 60 | . . 60 Influence Decreases 759 | . 348 411 Entered New Map 111 | . . 111 Time Decay 628 | . 338 290 Lost Part 20 | . 10 10 Squads Dispatched 5 | . 5 . Investigation 2 | . 2 . Extermination . | . . . Reinforcement 3 | . 3 . Assault . | . . . Garrison . | . . . Intercept . | . . . Searches Triggered . | . . . Construction Impeded . | . . . Haulers Reinforced . | . . . Active Scanning Responses . | . . . Cargo Convoy Interrupts . | . . . Stealth | -11 -10 -10 --------- Run | Yrd Mat Sub Distress Signals . | . . . Communications Jammed . | . . . Distress Signals . | . . . Times Spotted 44 | . 30 14 Peak Tracking Total 7 | . 7 6 Tactical Retreats 2 | . . 2 Traps | -11 -10 -10 ------- Run | Yrd Mat Sub Traps Triggered 2 | . 1 1 Indirectly . | . . . Trap Hack Attempts . | . . . Triggered . | . . . Disarmed . | . . . Reprogrammed . | . . . Reused . | . . . Traps Extracted . | . . . Installed . | . . . Triggered . | . . . Machines | -11 -10 -10 ---------- Run | Yrd Mat Sub Machines Disabled 5 | . 3 2 Max in Single Turn 1 | . 1 1 Machines Repaired . | . . . Machines Dismantled . | . . . Machines Sabotaged . | . . . Overloaded Fab Kills . | . . . Hacking | -11 -10 -10 --------- Run | Yrd Mat Sub Machines Accessed 7 | . 6 1 Terminals 5 | . 5 . Fabricators . | . . . Repair Stations . | . . . Recycling Units 1 | . 1 . Scanalyzers . | . . . Garrison Access . | . . . Total Hacks 16 | . 15 1 Successful 9 | . 8 1 Failed 7 | . 7 . Catastrophic 3 | . 3 . Database Lockouts . | . . . Manual 8 | . 8 . Terminals 13 | . 13 . Fabricators . | . . . Repair Stations . | . . . Recycling Units 2 | . 2 . Scanalyzers . | . . . Garrison Access . | . . . Terminal Hacks 6 | . 5 1 Robot Analysis 1 | . 1 . Locate Traps 2 | . 2 . Patrol Status 1 | . 1 . Registered Components 1 | . 1 . Proto ID Catalog 1 | . . 1 Fabricator Hacks . | . . . Repair Station Hacks . | . . . Recycling Unit Hacks 2 | . 2 . Report Inventory 1 | . 1 . Retrieve Components 1 | . 1 . Scanalyzer . | . . . Garrison Access Hacks . | . . . Unauthorized Hacks 1 | . 1 . Terminals 1 | . 1 . Botnet 1 | . 1 . Fabricators . | . . . Repair Stations . | . . . Recycling Units . | . . . Scanalyzers . | . . . Garrison Access . | . . . Data Cores Recovered . | . . . Used . | . . . Hacking Detections 5 | . 5 . Full Trace Events . | . . . Feedback Events . | . . . Feedback Blocked . | . . . Robot Schematics Acquired . | . . . Robots Built . | . . . Authchips . | . . . Time . | . . . Total Robot Build Rating . | . . . Part Schematics Acquired . | . . . Parts Built . | . . . Authchips . | . . . Time . | . . . Total Part Build Rating . | . . . Part Studies Acquired . | . . . Parts Repaired . | . . . Time . | . . . Parts Recycled . | . . . Recycled Matter . | . . . Retrieved Matter . | . . . Retrieved Components 9 | . 9 . Parts Scanalyzed . | . . . Part Schematics Acquired . | . . . Parts Damaged . | . . . Bothacking | -11 -10 -10 ------------ Run | Yrd Mat Sub Used RIF Installer . | . . . Robots Hacked . | . . . Non-combat . | . . . Combat . | . . . Robot Hacks Applied . | . . . Relay Couplers Released . | . . . Fabnet Peak Effective % . | . . . Robots Rewired . | . . . Allies Hacked . | . . . Hacks Repelled . | . . . Allies | -11 -10 -10 -------- Run | Yrd Mat Sub Total Allies . | . . . Largest Group . | . . . Highest-Rated Group . | . . . Highest-Rated Ally . | . . . Total Orders . | . . . Ally Attacks . | . . . Total Damage . | . . . Kills . | . . . Allies Corrupted . | . . . Allies Melted . | . . . Intel | -11 -10 -10 ------- Run | Yrd Mat Sub Active Infowar (turns) 978 | . . 978 Sensors 978 | . . 978 Robot Analysis Total 1 | . 1 . Derelict Logs Recovered . | . . . Drone Launches . | . . . Drone Recoveries . | . . . Exploration | -11 -10 -10 ------------- Run | Yrd Mat Sub Turns Passed 2018 | 45 977 996 Spaces Moved 1397 | 38 631 728 Core 3 | 3 . . Treads . | . . . Legs . | . . . Wheels 1394 | 35 631 728 Hover . | . . . Flight . | . . . Fastest Speed 50 | 50 100 107 Average Speed 109 | 96 112 108 Slowest Speed 145 | 100 145 110 Overloaded Moves . | . . . Propulsion Burnouts . | . . . Robots Hopped . | . . . Potential Cave-ins . | . . . Cave-ins Triggered . | . . . Exploration Rate (%) 39 | 2 76 40 Regions Visited 2 Branch Regions 1 Pre-discovered Areas . | . . . Known Exits Taken . | . . . Unknown Exits Taken 2 | 1 1 . Scrap Searched 8 | . . 8 Spaces Dug 16 | . . 16 Terrain Destroyed 103 | . 42 61 Melee . | . . . Projectile 17 | . 1 16 AOE 86 | . 41 45 Terrain Rammed . | . . . Walls Destroyed . | . . . Machines Disabled . | . . . Actions | -11 -10 -10 --------- Run | Yrd Mat Sub Total 1692 | 43 808 841 Wait 76 | . 72 4 Move 1395 | 37 630 728 Hop . | . . . Pick Up 31 | . 27 4 Fast Attach 12 | 6 5 1 Attach 5 | . 2 3 Detach 2 | . 1 1 Swap 25 | . 7 18 Drop 21 | . 12 9 Fire 124 | . 52 72 Melee . | . . . Ram . | . . . Kick . | . . . Crush . | . . . Escape Stasis . | . . . Rewire 1 | . . 1 Trap . | . . . Miscellaneous . | . . . Route ------- -11/Scrapyard -10/Materials (discovered 4 exits: [*Mat x2] / [*Min] / *Sub) -10/Subcaves (discovered 3 exits: [*Mat] / [*Rec] / [*Scr]) History --------- Turn | Location | Event 12 | -11/Scrapyard | Discovered new exit (range 16) 46 | -11/Scrapyard | Entered Materials 308 | -10/Materials | Build established: Mutant 372 | -10/Materials | Discovered new exit (range 6) 546 | -10/Materials | Derelicts attacked the area 761 | -10/Materials | Discovered new exit (range 4) 769 | -10/Materials | Discovered new exit (range 15) 1014 | -10/Materials | Discovered new exit (range 9) 1023 | -10/Materials | Entered Subcaves 1024 | -10/Subcaves | Approached by a straggling Scientist 1071 | -10/Subcaves | Scientist uncovered a shortcut to Scraptown 1113 | -10/Subcaves | Core integrity fell below 50% 1344 | -10/Subcaves | Visited 4L-MR0's lab 1361 | -10/Subcaves | Found Cargo Legs 1402 | -10/Subcaves | Discovered new exit (range 15) 1604 | -10/Subcaves | Discovered new exit (range 16) 1687 | -10/Subcaves | Shifting Twisted Machinery released Battle Cannon 1691 | -10/Subcaves | Shifting Twisted Machinery released Battle Cannon 2018 | -10/Subcaves | Core integrity fell below 20% 2019 | -10/Subcaves | Destroyed by HN-IA4(R) with Subdweller Shrapnel Launcher Last Messages --------------- 01793_ Found 64 Matter. 01794_ Searching scrap... 01794_ Found Flamer. 01794_ Found 45 Matter. 01798_ Searching scrap... 01798_ Found Mak. Light Armor Plating. 01798_ Found 49 Matter. 01799_ Dropped Lgt. Armor Plating. 01801_ Acquired Mak. Light Armor Plating. 01849_ 8Z-MXB(u) tweaks Twisted Machinery. 01907_ 8Z-MXB(u) builds Twisted Machinery. 01922_ Autobeam Turret knocked back. 01929_ Destroyed Autobeam. 01929_ Autobeam Turret destroyed. 01937_ Acquired 23 matter. 01941_ Acquired 2 matter. 01943_ Acquired 11 matter. 01944_ Acquired 7 matter. 01957_ Subatomizers dissect the Flamer. 02016_ HN-IA4(R): "SUBMAD!" Map ----- +----------------------------------------------------+ | ????????????????# " % #??????????# ###? | | ????????????????##"#""" #??????????## ##??? | | ?????????????????###### #??????????## ###?? | | ??????????????????????" #?????????# ##? | | ????????????????????? " #???????## #? | | ???????????????????? ###???????# #? | | ???????????????????# % #####????????## #? | | ???????????????????########???####???### ## | | ?????????????????????????????## ##### | | ???????????????????????###???# ## ### | | ???????????????????###?# ##??# ### | | ???????????????????# ## #?## #### | | ???????????????????# #?# % #?? | | ???????????????????# #?### #?? | | ???????????????????## ##### ##?? | | ????????????????????## #######?? | | ?????????????????????### ### ##??# ##? | | ???????????????????????# ###?## ### #? | | ???????????????????????# #????## ## | | ???????????????????????# ##?????# | | ??????????????????????## # ##??????# | | ????????????????????###; # %##???????# | | ???????????????######;; ##????????## ### ## | | ???????????????# ##; ;##??????????###??####? | | ???????????????# < ;;#???????????????????? | | ???????????????# ;;@ ;#???????????????????? | | ???????????????## #;; ;#??????????????????? | | ????????????????###### ; ;#??????????????????? | | ?????????????????????#; ;#??????????????????? | | ?????????????????????;; ##??????????????????? | | ???????????????????? ;#???????????????????? | | ??????????????????? ;#???????????????????? | | ??????????????????# ;#???????????????????? | | ??????????????????# ;???????????????????? | | ??????????????????## ;;???????????????????? | | ???????????????????#; ;##??????????????????? | | ???????????????????##### " "#???????????????????? | | ????????????????????????#"R"#???????????????????? | | ??????????????????????????""????????????????????? | | ????????????????????????????????????????????????? | | ????????????????????????????????????????????????? | | ????????????????????????????????????????????????? | | ????????????????????????????????????????????????? | | ????????????????????????????????????????????????? | | ????????????????????????????????????????????????? | | ????????????????????????????????????????????????? | | ????????????????????????????????????????????????? | | ????????????????????????????????????????????????? | | ????????????????????????????????????????????????? | | ????????????????????????????????????????????????? | +----------------------------------------------------+ Best States ------------- Heat Dissipation 25 Energy Generation 15 Energy Capacity 250 Matter Stores 300 Matter Capacity 300 Sight Range 16 Robot Scan Range 14 Terrain Scan Density 10 Armor Coverage 150 Evasion (%) 40 Item Schematics ----------------- None Robot Schematics ------------------ None Fabricated ------------ Nothing Repaired ---------- Nothing Studied --------- None Alien Tech Used ----------------- None Achievements -------------- None Challenges ------------ None Game ------ Seed HeatRelayRefractor Manual? 0 Play Time 00:21:32 Cumulative 161.9 hours Start 2025.12.07 @ 22:33:27 End 2025.12.07 @ 23:04:16 Sessions 1 Manual Loads 0 Difficulty Rogue Special Mode None Game No. 92 Rogue 92 Adventurer 0 Explorer 0 Win Type - Total 1 Types 1/0/0/0/0/0/0/0/0/0 Lore% 69 Gallery% 62 Achievement% 51 Wizard Run 0 Options --------- Layout 1 ASCII 0 Keyboard 0 Movement Mouse Keybinds 0 Fullscreen 2 Font 32/SmallcapsGlow Map View 50x35 Zoom Use 0% Tactical HUD 1 Map Filters NONE Filters NONE Steam 1 RUN: 6c869b43-bf3c-405c-be17-91e584b737e3